Cogmind - Beta 13 @@@ ROGUE MODE // 2024.04.07 @ 10:52:53 Player: A Moose Result: Destroyed by as-05254 with Assembled F-torch Performance ------------- Evolutions (0) 0 Regions Visited (2) 400 Robots Destroyed (13) 65 Value Destroyed (269) 269 Prototype IDs (0) 0 Alien Tech Used (0) 0 Bonus (0) 0 TOTAL SCORE: 734 Bonus ------- None Cogmind --------- Core Integrity 0/250 Matter 285/300 Energy 80/100 System Corruption 0% Temperature Cool (20) Movement Core (50) Location -10/Mines Parts ------- > --- POWER (1) -------- (None) > --- PROPULSION (2) --- (None) > --- UTILITY (2) ------ (None) > --- WEAPON (2) ------- Small Laser Light Assault Rifle > --- INVENTORY (5) ---- High-capacity Matter Pod (200) Peak State ------------ > --- POWER ------------ Ion Engine > --- PROPULSION ------- Light Treads Light Treads > --- UTILITY ---------- Small Storage Unit Propulsion Shielding > --- WEAPON ----------- EM Pulse Gun Grenade Launcher > --- INVENTORY -------- Light Ion Engine Small Laser Light Assault Rifle [Rating: 7] Favorites ----------- Power Ion Engine Engine Ion Engine Propulsion Light Treads Treads Light Treads Wheel Wheel Utility Small Storage Unit Storage Small Storage Unit Protection Propulsion Shielding Weapon Light Assault Rifle Energy Gun EM Pulse Gun Ballistic Gun Light Assault Rifle Launcher Grenade Launcher Build | -11 -10 -10 ------- Run | Yrd Mat Min Slots Evolved . | . . . Power . | . . . Propulsion . | . . . Utility . | . . . Weapon . | . . . Parts Attached 21 | 6 4 11 Power 2 | 1 . 1 Engine 2 | 1 . 1 Core . | . . . Reactor . | . . . Propulsion 4 | 2 . 2 Treads 3 | 2 . 1 Leg . | . . . Wheel 1 | . . 1 Hover . | . . . Flight . | . . . Utility 2 | 1 1 . Device . | . . . Storage 1 | 1 . . Processor . | . . . Hackware . | . . . Protection 1 | . 1 . Artifact . | . . . Weapon 13 | 2 3 8 Energy Gun 5 | 2 1 2 Energy Cannon . | . . . Ballistic Gun 3 | . . 3 Ballistic Cannon . | . . . Launcher 5 | . 2 3 Special Weapon . | . . . Impact Weapon . | . . . Slashing Weapon . | . . . Piercing Weapon . | . . . Special Melee Weapon . | . . . Unidentified Prototypes . | . . . Parts Lost 9 | . . 9 Power 1 | . . 1 Propulsion 4 | . . 4 Utility 1 | . . 1 Weapon 3 | . . 3 Highest Loss Streak 5 | . . 5 To Critical Strikes . | . . . Average Slot Usage (%) 92 | . 98 89 Engine 13 | . 14 13 Treads 26 | . 28 26 Storage 13 | . 14 13 Protection 9 | . 12 7 Energy Gun 10 | . 16 7 Ballistic Gun 11 | . . 18 Launcher 4 | . 11 . Naked Turns . | . . . Heaviest Build 16 | 13 16 14 Greatest Support 40 | 40 40 40 Greatest Overweight (x) 2 | . . 2 Average Overweight (x) . | . . . Largest Inventory Capacity 8 | 8 8 8 Average Capacity 7 | 6 8 7 Most Carried 5 | 3 5 5 Average Carried 4 | 1 4 4 Final Capacity 8 | 8 8 5 Final Carried 5 | 2 5 1 Class Distribution -------------------- 100% | Mutant Dominant Class ---------------- Mutant | -10/Materials Mutant | -10/Mines Resources | -11 -10 -10 ----------- Run | Yrd Mat Min Matter Collected 741 | 170 313 258 Remotely . | . . . Salvage Created 423 | . 252 171 Parts 26 | . 16 10 Haulers Intercepted 2 | . 2 . Recyclers Shooed . | . . . Parts Field Recycled . | . . . Retrieved Matter . | . . . Parts Self-Destructed . | . . . Prevented . | . . . Kills | -11 -10 -10 ------- Run | Yrd Mat Min Combat Hostiles Destroyed 16 | . 4 12 Guns 12 | . 1 11 AOE 3 | . 2 1 Classes Destroyed 5 | . 3 2 Hauler 2 | . 2 . Watcher 1 | . 1 . Swarmer 6 | . . 6 Grunt 4 | . 4 . Assembled 6 | . . 6 Best Kill Streak 3 | . 2 3 Combat Bots Only 3 | . 2 3 Max Kills in Single Turn 1 | . 1 1 Gunslinging . | . . . Exploded 1 | . 1 1 Melee . | . . . Uniques/NPCs Destroyed . | . . . Combat | -11 -10 -10 -------- Run | Yrd Mat Min Hostile Shots Fired 139 | . 18 121 Missed 47 | . 9 38 Damage Taken 1177 | . 132 1045 Core 256 | . . 256 Absorbed by Shields . | . . . Redirected to Shielding 54 | . 16 38 Core Remaining (%) 100 | 100 . . Volleys Fired 77 | . 35 42 Largest 2 | . 2 2 Hottest 80 | . 80 60 Shots Fired 124 | . 49 75 Gun 111 | . 39 72 Cannon . | . . . Launcher 13 | . 10 3 Special . | . . . Kinetic 63 | . . 63 Thermal 5 | . 3 2 Explosive 13 | . 10 3 Electromagnetic 43 | . 36 7 Robot Hit Streak 15 | . 15 8 Robot Miss Streak 4 | . 4 4 Penetration Max . | . . . Secondary Targets 2 | . . 2 Max Gunslinging Chain 1 | . . 1 Shots Hit Robots 76 | . 33 43 Core Hits 40 | . 14 26 Critical Kills . | . . . Critical Parts Destroyed . | . . . Critical Strikes . | . . . Melee Attacks . | . . . Impact . | . . . Slashing . | . . . Piercing . | . . . Sneak Attacks . | . . . Combat Hostiles . | . . . Follow-up Attacks . | . . . Damage Inflicted 1127 | . 712 415 Guns 645 | . 318 327 Cannons . | . . . Explosions 460 | . 383 77 Melee . | . . . Ramming 22 | . 11 11 Kinetic 292 | . . 292 Thermal 34 | . 22 12 Explosive 460 | . 383 77 Electromagnetic 319 | . 296 23 Impact . | . . . Slashing . | . . . Piercing . | . . . Highest Corruption . | . . . Average Corruption . | . . . Corruption Purged . | . . . Corruption Blocked . | . . . Overload Shots . | . . . Overflow Damage . | . . . Projectiles . | . . . Explosions . | . . . Melee . | . . . Knockbacks . | . . . Impact . | . . . Kinetic . | . . . Secondary . | . . . Self-Inflicted Damage 27 | . 11 16 Shots 2 | . 1 1 Rammed 4 | . 1 3 Targets Rammed 4 | . 1 3 Kicked . | . . . Crushed . | . . . Highest Temperature 54 | . 54 40 Average Temperature 17 | . 16 17 Received Heat Transfer 213 | . 66 147 Siege Activations . | . . . Robots Corrupted 1 | . 1 . Combat Hostiles 1 | . 1 . Parts Fried 1 | . 1 . Impact Corruptions . | . . . Robots Melted . | . . . Combat Hostiles . | . . . Parts Melted . | . . . Heat Transferred 75 | . 50 25 Parts Sabotaged . | . . . Parts Stolen . | . . . Parts Stripped . | . . . Power Chain Reactions . | . . . Alert | -11 -10 -10 ------- Run | Yrd Mat Min Peak Influence 217 | . 217 133 Initial . | . . . Average 65 | . 96 53 Maximum Alert Level 1 | . 1 . Low Security (%) 96 | 100 90 100 Level 1 3 | . 9 . Level 2 . | . . . Level 3 . | . . . Level 4 . | . . . Level 5 . | . . . High Security . | . . . Max Security . | . . . Squads Dispatched 2 | . 2 . Investigation . | . . . Extermination . | . . . Reinforcement 2 | . 2 . Assault . | . . . Garrison . | . . . Intercept . | . . . Searches Triggered . | . . . Construction Impeded . | . . . Haulers Reinforced . | . . . Active Scanning Responses . | . . . Cargo Convoy Interrupts . | . . . Stealth | -11 -10 -10 --------- Run | Yrd Mat Min Distress Signals . | . . . Communications Jammed . | . . . Distress Signals . | . . . Times Spotted 27 | . 8 19 Peak Tracking Total 5 | . 2 5 Tactical Retreats 2 | . . 2 Traps | -11 -10 -10 ------- Run | Yrd Mat Min Traps Triggered . | . . . Indirectly . | . . . Trap Hack Attempts . | . . . Triggered . | . . . Disarmed . | . . . Reprogrammed . | . . . Reused . | . . . Traps Extracted . | . . . Installed . | . . . Triggered . | . . . Machines | -11 -10 -10 ---------- Run | Yrd Mat Min Machines Disabled 4 | . 4 . Max in Single Turn 2 | . 2 . Machines Repaired . | . . . Machines Dismantled . | . . . Machines Sabotaged . | . . . Overloaded Fab Kills . | . . . Hacking | -11 -10 -10 --------- Run | Yrd Mat Min Machines Accessed 3 | . 3 . Terminals 3 | . 3 . Fabricators . | . . . Repair Stations . | . . . Recycling Units . | . . . Scanalyzers . | . . . Garrison Access . | . . . Total Hacks 7 | . 7 . Successful 4 | . 4 . Failed 3 | . 3 . Catastrophic . | . . . Database Lockouts . | . . . Manual . | . . . Terminals 7 | . 7 . Fabricators . | . . . Repair Stations . | . . . Recycling Units . | . . . Scanalyzers . | . . . Garrison Access . | . . . Terminal Hacks 4 | . 4 . Robot Analysis 1 | . 1 . Alert Level 1 | . 1 . Unreport Threat 1 | . 1 . Locate Traps 1 | . 1 . Fabricator Hacks . | . . . Repair Station Hacks . | . . . Recycling Unit Hacks . | . . . Scanalyzer . | . . . Garrison Access Hacks . | . . . Unauthorized Hacks . | . . . Terminals . | . . . Fabricators . | . . . Repair Stations . | . . . Recycling Units . | . . . Scanalyzers . | . . . Garrison Access . | . . . Data Cores Recovered . | . . . Used . | . . . Hacking Detections 3 | . 3 . Full Trace Events . | . . . Feedback Events . | . . . Feedback Blocked . | . . . Robot Schematics Acquired . | . . . Robots Built . | . . . Authchips . | . . . Time . | . . . Total Robot Build Rating . | . . . Part Schematics Acquired . | . . . Parts Built . | . . . Authchips . | . . . Time . | . . . Total Part Build Rating . | . . . Parts Repaired . | . . . Time . | . . . Parts Recycled . | . . . Recycled Matter . | . . . Retrieved Matter . | . . . Retrieved Components . | . . . Parts Scanalyzed . | . . . Part Schematics Acquired . | . . . Parts Damaged . | . . . Bothacking | -11 -10 -10 ------------ Run | Yrd Mat Min Used RIF Installer . | . . . Robots Hacked . | . . . Non-combat . | . . . Combat . | . . . Robot Hacks Applied . | . . . Relay Couplers Released . | . . . Fabnet Peak Effective % . | . . . Robots Rewired . | . . . Allies Hacked . | . . . Hacks Repelled . | . . . Allies | -11 -10 -10 -------- Run | Yrd Mat Min Total Allies . | . . . Largest Group . | . . . Highest-Rated Group . | . . . Highest-Rated Ally . | . . . Total Orders . | . . . Ally Attacks . | . . . Total Damage . | . . . Kills . | . . . Allies Corrupted . | . . . Allies Melted . | . . . Intel | -11 -10 -10 ------- Run | Yrd Mat Min Robot Analysis Total 1 | . 1 . Derelict Logs Recovered 1 | . . 1 Drone Launches . | . . . Drone Recoveries . | . . . Exploration | -11 -10 -10 ------------- Run | Yrd Mat Min Turns Passed 1218 | 76 430 712 Spaces Moved 638 | 44 209 385 Core 34 | 7 . 27 Treads 599 | 37 209 353 Legs . | . . . Wheels 5 | . . 5 Hover . | . . . Flight . | . . . Fastest Speed 50 | 50 160 50 Average Speed 154 | 142 160 152 Slowest Speed 160 | 160 160 160 Overloaded Moves . | . . . Propulsion Burnouts . | . . . Robots Hopped . | . . . Cave-ins Triggered . | . . . Exploration Rate (%) 41 | 4 54 65 Regions Visited 2 Branch Regions 1 Pre-discovered Areas . | . . . Known Exits Taken . | . . . Unknown Exits Taken 2 | 1 1 . Scrap Searched 1 | . . 1 Spaces Dug . | . . . Terrain Destroyed 79 | . 62 17 Melee . | . . . Projectile . | . . . AOE 79 | . 62 17 Terrain Rammed . | . . . Walls Destroyed . | . . . Machines Disabled . | . . . Actions | -11 -10 -10 --------- Run | Yrd Mat Min Total 756 | 57 254 445 Wait . | . . . Move 636 | 43 208 385 Hop . | . . . Pick Up 15 | 8 5 2 Fast Attach . | . . . Attach 13 | 6 1 6 Detach . | . . . Swap 8 | . 3 5 Drop 3 | . 1 2 Fire 77 | . 35 42 Melee . | . . . Ram . | . . . Kick . | . . . Crush 4 | . 1 3 Escape Stasis . | . . . Rewire . | . . . Trap . | . . . Miscellaneous . | . . . Route ------- -11/Scrapyard -10/Materials (discovered 2 exits: [*Mat] / [*Min]) -10/Mines (discovered 2 exits: [*Mat] / Sub) History --------- Turn | Location | Event 6 | -11/Scrapyard | Discovered new exit (range 14) 77 | -11/Scrapyard | Entered Materials 318 | -10/Materials | Build established: Mutant 392 | -10/Materials | Discovered new exit (range 16) 453 | -10/Materials | Discovered new exit (range 11) 507 | -10/Materials | Entered Mines 508 | -10/Mines | Met a Derelict bent on vengeance 772 | -10/Mines | Discovered new exit (range 15) 813 | -10/Mines | Assembled infested the area 819 | -10/Mines | Assisted by a Guerilla fighting off Assembled 1043 | -10/Mines | Identified exit to Subcaves 1118 | -10/Mines | Core integrity fell below 50% 1212 | -10/Mines | Core integrity fell below 20% 1219 | -10/Mines | Destroyed by as-05254 with Assembled F-torch Last Messages --------------- K-01 Serf collects debris. R-06 Scavenger collects Lgt. Ion Engine. Lgt. Treads destroyed. Ion Engine destroyed. as-55637 destroyed. Acquired 20 matter. Acquired 17 matter. Acquired derelict log, extracted data. as-07996 destroyed. Acquired 6 matter. Lgt. Treads destroyed. Lgt. Assault Rifle destroyed. Acquired 1 matter. Lgt. Treads destroyed. Dropped Lgt. Ion Engine. Dropped Sml. Storage Unit. Grenade Launcher destroyed. Acquired 17 matter. Acquired Wheel. Wheel destroyed. Map ----- +----------------------------------------------------+ | #?# #?????????#########??????# !%=##?## # | | ###?# ### ###?????????????????# ### !##???#=# | | ????# ###%#????????????????????# ##????# # | | ???## ##???????????????????# ###?????#%# | | ???# ##???????????????##?## ##???????#=# | | ???# #???????????????# #?######?????????#!# | | ???## ##??????????????# #???????????????# # | | ????## """ ###????????????# ##?????????????# # | | ????##! """ ##????????????# ##????????????# # | | ???##| """ #?????????????# ######??????## # | | #### #?####?????????#% ## ##??#### | | # ! #### #??####### *%= #### !% | | ###?# ??# ## = | | ##???# ### = * #### | | * #?????# ##%###%##### ! ##??? | | ! ## ##????## * ##!##??## ##???? | | ### #????## a ##??### ####????? | | ##?# *#???## % [ #????####???????? | | ## ##??# #???# =%! #???????????????? | | ### ##### !#???# *%! * ##???????????????? | | #?# #???# ##????????????????? | | ??# ########???# a ###?????????????????? | | ??# #??????????## ## a ##???????????????????? | | ### ##??????????###?# ##????????????????????? | | ##?????????????## ##?????????????????????? | | #???#??????????# @#??????????????????????? | | # ##? ##### #????### #??????????????????????? | | # ## #??????# #??????????????????????? | | # #??????????? #??????????????????????? | | ## #??????????## ??????????????????????? | | ?## ##???????????# ??????????????????????? | | #?## #????????????#####?????????????????????? | | #### ##??????????????????????????????????????? | | ## ####???????????????????????????????????????? | | ##??????????????????????????????????????????? | | ##???????????????????????????????????????????? | | ##????????????????????????????????????????????? | | ###?????????????????????????????????????????????? | | ##???????????????????????????????????????????????? | | #????????????????????????????????????????????????? | | ?????????????????????????????????????????????????? | | ?????????????????????????????????????????????????? | | ?????????????????????????????????????????????????? | | ?????????????????????????????????????????????????? | | ?????????????????????????????????????????????????? | | ?????????????????????????????????????????????????? | | ?????????##??????????????????????????????????????? | | ###### #??????????????????????????????????????? | | #??????????????????????????????????????? | | ## #??????????????????????????????????????? | +----------------------------------------------------+ Best States ------------- Heat Dissipation 25 Energy Generation 10 Energy Capacity 250 Matter Stores 300 Matter Capacity 300 Sight Range 16 Terrain Scan Density 10 Propulsion Shielding 33 Evasion (%) 50 Recoil Reduction 2 Item Schematics ----------------- None Robot Schematics ------------------ None Fabricated ------------ Nothing Alien Tech Used ----------------- None Achievements -------------- None Challenges ------------ None Game ------ Seed LightpackDataWand Manual? 0 Play Time 00:14:32 Cumulative 20.6 hours Start 2024.04.07 @ 10:43:02 End 2024.04.07 @ 10:52:53 Sessions 1 Manual Loads 0 Difficulty Rogue Special Mode None Game No. 24 Rogue 15 Adventurer 9 Explorer 0 Win Type - Total 0 Types 0/0/0/0/0/0/0/0/0 Lore% 19 Gallery% 32 Achievement% 26 Wizard Run 0 Options --------- Layout 1 ASCII 0 Keyboard 0 Movement Mouse Keybinds 0 Fullscreen 1 Font 24/Smallcaps Map View 50x35 Zoom Use 0% Tactical HUD 0 Map Filters NONE Filters NONE Steam 1 RUN: 8de92636-6c9b-4c27-a086-d3358cef9cae